bitfinex-derivatives/quotes_ETHF0:USTF0_20251028
["timestamp","ask_amount","ask_price","bid_price","bid_amount"]
[1761622828349,0.7824,4086.3,4086.2,0.00214698]
[1761622828858,1.2229,4086.3,4086.2,0.00214698]
[1761622829151,42.0229,4086.3,4086.2,0.00214698]
[1761622829948,41.5824,4086.3,4086.2,0.00214698]
[1761622832866,42.0229,4086.3,4086.2,0.00214698]
[1761622833056,41.5824,4086.3,4086.2,0.00214698]
[1761622835663,42.0229,4086.3,4086.2,0.00214698]
[1761622838761,42.0229,4086.3,4085.2,1.31683798]
[1761622838762,0.4414,4085.4,4085.2,1.31683798]
[1761622838967,0.7863,4085.1,4085.0,0.44064]
[1761622839168,0.7863,4085.1,4085.0,0.66104]
[1761622839567,0.7863,4085.1,4085.0,0.88324]
[1761622839865,0.7863,4085.1,4085.0,0.88512027]
[1761622839866,0.78808102,4085.1,4085.0,0.88512027]
[1761622842571,0.00178102,4085.1,4085.0,1.13472027]
[1761622842771,0.00178102,4085.1,4085.0,2.45155825]
[1761622842971,0.34668102,4085.1,4085.0,2.45155825]
[1761622843868,0.3449,4086.0,4085.9,0.2496]
[1761622844068,0.9142,4086.0,4085.9,1.70791478]
[1761622844765,0.34735942,4086.0,4085.9,2.39805478]
[1761622844967,0.91665942,4086.0,4085.9,1.48571478]
[1761622845774,0.69745942,4086.0,4085.9,2.39806478]
[1761622845980,0.69745942,4086.0,4085.9,1.95751478]
[1761622846184,0.69745942,4086.0,4085.9,1.70791478]
[1761622846477,0.91665942,4086.0,4085.9,1.70791478]
[1761622847382,0.91665942,4086.0,4085.9,3.02410894]
[1761622847776,0.91665942,4086.0,4085.9,3.46464894]
[1761622848079,0.69745942,4086.0,4085.9,3.71424894]
[1761622848278,0.69745942,4086.0,4085.9,3.27370894]
[1761622848475,0.91665942,4086.0,4085.9,3.02410894]
[1761622848677,0.91665942,4086.0,4085.9,3.46464894]
[1761622848872,0.91665942,4086.0,4085.9,3.02410894]
[1761622849079,0.91665942,4086.0,4085.9,3.27370894]
[1761622850081,0.91665942,4086.0,4085.9,1.95751478]
[1761622851083,0.91665942,4086.0,4085.9,1.70791478]
[1761622851479,0.69745942,4086.0,4085.9,2.14845478]
[1761622851781,0.34735942,4086.0,4085.9,2.39805478]
[1761622854487,0.91665942,4086.0,4085.9,1.70791478]
[1761622855684,0.91665942,4086.0,4085.9,1.26531478]
[1761622856080,0.91665942,4086.0,4085.6,1.75789848]
[1761622856283,0.44055,4085.8,4085.7,1.31885066]
[1761622856486,0.78549,4085.4,4085.3,1.31885066]
[1761622856678,1.22689,4085.4,4085.3,1.31885066]
[1761622858081,42.02689,4085.4,4085.3,1.31885066]
[1761622858477,41.5863,4085.4,4085.2,1.05487523]
[1761622858786,0.7863,4085.3,4085.2,1.27527523]
[1761622859478,41.5863,4085.3,4085.2,1.27527523]
[1761622859873,41.5863,4085.3,4085.2,2.18768523]
[1761622860081,41.5863,4085.3,4085.2,1.49747523]
[1761622860589,0.7863,4085.3,4085.2,1.49747523]
[1761622860786,0.7863,4085.3,4085.2,1.05487523]
[1761622860987,41.5863,4085.3,4085.2,1.05487523]
[1761622861183,41.5863,4085.3,4085.0,0.00188027]
[1761622861184,0.3449,4085.2,4085.0,0.00188027]
[1761622861490,41.2414,4085.3,4085.0,0.00188027]
[1761622861491,0.7863,4085.1,4085.0,0.00188027]
[1761622862490,0.7863,4085.1,4085.0,1.0567555]
[1761622863296,0.7863,4085.1,4085.0,1.2771555]
[1761622864586,0.7863,4085.1,4085.0,1.0567555]
[1761622865089,0.7863,4085.1,4085.0,1.4788555]
[1761622867296,0.3449,4085.1,4085.0,2.1691955]
[1761622870294,0.7811,4085.1,4085.0,1.4788555]
[1761622870496,0.4362,4084.7,4084.6,1.75789848]
[1761622870799,0.8912,4084.5,4084.4,1.05487523]
[1761622871003,0.7533,4084.2,4084.1,1.05487523]
[1761622871300,41.5533,4084.2,4084.1,1.05487523]
[1761622871495,41.5533,4084.2,4084.1,1.05685349]
[1761622871799,41.1171,4084.2,4084.1,2.19288349]
[1761622872003,0.5411,4084.2,4084.1,1.75215349]
[1761622872195,0.7533,4084.2,4084.1,1.50245349]
[1761622872798,0.7533,4084.2,4084.1,1.31886704]
[1761622872799,1.19402,4084.2,4084.1,1.31886704]
[1761622872996,1.19402,4084.2,4084.1,0.00197826]
[1761622874411,41.99402,4084.2,4084.1,0.00197826]
[1761622875101,0.44083,4083.2,4083.1,1.31688878]
[1761622875305,1.19413,4083.2,4083.1,1.05487523]
[1761622875706,0.44086,4083.0,4082.8,0.024493]
[1761622876010,0.7533,4082.9,4082.8,0.024493]
[1761622876197,0.75526454,4082.9,4082.8,0.02760985]
[1761622879911,0.75526454,4082.9,4082.8,0.24850985]
[1761622881310,0.75526454,4082.9,4082.8,0.47320985]
[1761622882313,0.31906454,4082.9,4082.8,0.72290985]
[1761622884011,0.00196454,4082.9,4082.8,0.72290985]
[1761622884605,0.5411,4083.7,4083.6,0.4456]
[1761622885815,0.54409172,4083.7,4083.6,0.6953]
[1761622886710,0.32009172,4083.7,4083.6,0.6953]
[1761622887107,0.00299172,4083.7,4083.6,0.6953]
[1761622887809,0.3171,4084.3,4084.2,0.88632]
[1761622888014,0.679,4084.5,4084.4,1.136]
[1761622888211,0.679,4084.5,4084.4,0.8863]
[1761622888513,0.8912,4084.5,4084.4,0.2209]
[1761622888909,0.89304103,4084.5,4084.4,0.2209]
[1761622889419,0.89304103,4084.5,4084.4,0.8863]
[1761622889616,0.89304103,4084.5,4084.4,0.4456]
[1761622891612,0.89304103,4084.5,4084.4,0.8863]
[1761622891923,0.89304103,4084.5,4084.4,1.136]
[1761622891924,0.00184103,4084.5,4084.4,1.136]
[1761622893118,0.31894103,4084.5,4084.4,1.136]
[1761622893819,0.00184103,4084.5,4084.4,4.31268654]
[1761622894321,0.00184103,4084.5,4084.4,5.62957532]
[1761622894621,0.32314103,4084.5,4084.4,5.62957532]
[1761622894914,0.7644,4084.4,4084.2,5.01308754]
[1761622895120,0.7644,4084.3,4084.2,3.90719876]
[1761622895618,0.7644,4084.3,4084.2,4.34791876]
[1761622896011,0.7644,4084.3,4084.2,0.211]
[1761622896219,0.7644,4084.3,4084.2,0.65172]
[1761622896616,0.7644,4084.3,4084.2,0.87612]
[1761622897420,0.7644,4084.3,4084.2,1.12572]
[1761622898124,0.00184103,4084.5,4084.4,1.1257]
[1761622899915,0.00184103,4084.5,4084.4,4.82189876]
[1761622903523,0.357,4085.5,4084.6,1.10169]
[1761622903731,0.3213,4085.4,4085.3,1.12559]
[1761622903918,0.3213,4085.4,4085.3,2.18000874]
[1761622904730,0.00219739,4085.4,4085.3,2.18000874]
[1761622905321,0.54259739,4085.4,4085.3,1.70600874]
[1761622905525,0.76659739,4085.4,4085.3,1.93040874]
[1761622905722,0.32349739,4085.4,4085.3,2.18000874]
[1761622907131,0.76659739,4085.4,4085.3,1.26541874]
[1761622907629,0.76659739,4085.4,4085.3,1.70601874]
[1761622907819,0.76659739,4085.4,4085.3,1.93041874]
[1761622908021,0.76659739,4085.4,4085.3,2.18001874]
[1761622911329,0.54259739,4085.4,4085.3,2.18001874]
[1761622911726,0.54259739,4085.4,4085.3,3.49350338]
[1761622912534,0.54259739,4085.4,4085.3,3.49491205]
[1761622912935,0.76659739,4085.4,4085.3,3.24531205]
[1761622913236,0.76659739,4085.4,4085.3,2.18001874]
[1761622914134,0.32349739,4085.4,4085.3,2.18001874]
[1761622914435,0.54259739,4085.4,4085.3,1.93041874]
[1761622914632,0.54259739,4085.4,4085.3,2.18001874]
[1761622915131,0.54259739,4085.4,4085.3,1.93041874]
[1761622916633,0.54259739,4085.4,4085.3,2.18001874]
[1761622916929,0.54259739,4085.4,4085.3,1.48981874]
[1761622917133,0.76659739,4085.4,4085.3,1.48981874]
[1761622917632,0.76659739,4085.4,4085.3,1.93041874]
[1761622918133,0.76659739,4085.4,4085.3,1.48981874]
[1761622918431,0.76659739,4085.4,4085.3,1.26541874]
[1761622918632,0.3213,4085.3,4085.0,1.05441874]
[1761622918824,0.5404,4085.3,4085.2,1.31780767]
[1761622919030,1.205,4085.3,4085.2,1.31780767]
[1761622919737,0.7644,4085.3,4085.2,1.31780767]
[1761622920629,0.6667,4085.0,4084.9,0.4354]
[1761622920821,0.8907,4085.0,4084.9,0.87605]
[1761622921829,0.22129739,4085.4,4085.3,1.12561]
[1761622922031,0.22129739,4085.4,4085.3,2.39150637]
[1761622922226,0.54259739,4085.4,4085.3,2.39150637]
[1761622922537,0.76659739,4085.4,4085.3,2.14190637]
[1761622922939,0.54259739,4085.4,4085.3,2.39150637]
[1761622923334,0.32349739,4085.4,4085.3,2.39150637]
[1761622923743,0.00219739,4085.4,4085.3,2.39150637]
[1761622924828,0.1379,4086.0,4085.9,0.2237]
[1761622925033,0.3184,4086.4,4085.9,0.2237]
[1761622925232,0.5421,4086.4,4086.3,3.28812273]
[1761622925634,0.3184,4086.7,4086.6,0.4546]
[1761622925837,0.77183464,4086.7,4086.6,1.77543714]
[1761622926744,0.54503464,4086.7,4086.6,2.02483714]
[1761622926940,0.32133464,4086.7,4086.6,0.70698907]
[1761622927335,0.32133464,4086.7,4086.6,2.02434326]
[1761622927536,0.53913464,4086.7,4086.6,1.77494326]
[1761622927843,0.76333464,4086.7,4086.6,1.77494326]
[1761622928241,0.76333464,4086.7,4086.6,0.45758907]
[1761622928443,0.76333464,4086.7,4086.6,1.77476883]
[1761622928741,0.76333464,4086.7,4086.6,2.02416883]
[1761622929747,0.76333464,4086.7,4086.6,1.55106883]
[1761622930347,0.76333464,4086.7,4086.6,0.23388907]
[1761622931347,0.76333464,4086.7,4086.6,0.89735907]
[1761622931650,0.53913464,4086.7,4086.6,1.14675907]
[1761622932040,0.76333464,4086.7,4086.6,0.45688907]
[1761622932542,0.76333464,4086.7,4086.6,0.89735907]
[1761622932740,0.76333464,4086.7,4086.6,0.82546442]
[1761622935444,0.76333464,4086.7,4086.6,0.38499442]
[1761622937448,0.76333464,4086.7,4086.6,0.16199442]
[1761622938343,0.76333464,4086.7,4086.6,0.95746442]
[1761622938538,0.00293464,4086.7,4086.6,0.95746442]
[1761622941050,0.44027,4088.4,4087.4,0.97288]
[1761622941251,0.5689,4088.0,4087.9,1.26589637]
[1761622941443,0.8924,4088.0,4087.9,1.26589637]
[1761622941848,0.89508977,4088.0,4087.9,1.26589637]
[1761622942049,0.89508977,4088.0,4087.9,1.44339637]
[1761622943453,1.33539977,4088.0,4087.9,1.26589637]
[1761622943845,0.89508977,4088.0,4087.9,1.26589637]
[1761622945659,0.00268977,4088.0,4087.9,2.23871637]
[1761622945952,0.32618977,4088.0,4087.9,2.23871637]
[1761622946152,0.00268977,4088.0,4087.9,2.23871637]
[1761622946461,0.67858977,4088.0,4087.9,3.11392199]
[1761622946657,0.90278977,4088.0,4087.9,3.37674199]
[1761622947255,0.90278977,4088.0,4087.9,2.06121637]
[1761622947459,0.90278977,4088.0,4087.9,1.62089637]
[1761622947858,0.46078977,4088.0,4087.9,2.23871637]
[1761622948059,0.67858977,4088.0,4087.9,2.23871637]
[1761622949555,0.67858977,4088.0,4087.9,3.55424199]
[1761622950259,0.46078977,4088.0,4087.9,2.23871637]
[1761622950651,0.90278977,4088.0,4087.9,1.62089637]
[1761622951251,0.3235,4087.7,4087.6,1.26589637]
[1761622951555,0.7655,4087.7,4087.6,1.26589637]
[1761622952357,0.7655,4087.7,4087.6,2.7568602]
[1761622952550,0.5413,4087.7,4087.6,2.9343602]
[1761622952745,0.3235,4087.9,4087.8,0.61783]
[1761622953055,0.3235,4087.9,4087.8,0.97284]
[1761622953456,0.5413,4087.9,4087.8,0.97284]
[1761622953964,0.3235,4087.8,4087.7,1.31388029]
[1761622954253,0.3235,4087.8,4087.6,1.26589637]
[1761622954254,0.5445,4087.7,4087.6,1.44339637]
[1761622954457,0.7556,4087.7,4087.6,1.62039637]
[1761622954656,0.00268977,4088.0,4087.9,1.20203]
[1761622956863,0.3204,4088.6,4088.5,1.20197]
[1761622957866,0.32231267,4088.6,4088.5,1.20197]
[1761622958560,0.32231267,4088.6,4088.5,0.7617]
[1761622959064,0.32231267,4088.6,4088.5,1.20196]
[1761622960155,0.75751267,4088.6,4088.5,0.4371]
[1761622960761,0.75751267,4088.6,4088.5,0.2145]
[1761622960959,0.4352,4088.4,4088.2,2.5802227]
[1761622961156,0.7556,4088.3,4088.2,3.2350127]
[1761622961357,0.7556,4088.3,4088.2,3.7822127]
[1761622961760,0.7556,4088.3,4088.2,3.3419227]
[1761622962267,0.7556,4088.3,4088.2,2.02759637]
[1761622962565,0.7556,4088.3,4088.2,2.46788637]
[1761622962860,0.1281,4088.0,4087.8,0.2145]
[1761622963066,0.3204,4087.8,4087.7,1.20205]
[1761622963765,0.3204,4087.9,4087.8,1.20204]
[1761622964061,0.7556,4087.9,4087.8,0.4371]
[1761622964366,0.7556,4087.9,4087.8,1.70299637]
[1761622967261,0.7556,4087.9,4087.8,0.4371]
[1761622967568,0.7556,4087.9,4087.8,1.70299637]
[1761622968070,0.7556,4087.9,4087.8,0.2145]
[1761622968265,0.7556,4087.8,4087.7,1.26589637]
[1761622968465,0.7556,4087.8,4087.7,1.48039637]
[1761622968663,0.7556,4087.8,4087.7,1.70299637]
[1761622968873,0.7556,4087.8,4087.7,2.02759637]
[1761622969768,0.3204,4087.8,4087.7,2.02759637]
[1761622970672,0.1281,4088.0,4087.7,2.02759637]
[1761622970673,0.3204,4088.0,4087.9,0.7617]
[1761622971077,0.5445,4088.0,4087.9,0.7617]
[1761622971271,0.6726,4088.0,4087.9,0.7617]
[1761622971472,0.8837,4088.0,4087.9,0.7617]
[1761622972672,0.3204,4088.0,4087.9,0.7617]
[1761622972979,0.7556,4088.1,4088.0,0.2145]
[1761622976177,0.7556,4088.1,4088.0,0.7617]
[1761622977091,0.5445,4088.1,4088.0,0.7617]
[1761622979894,0.7556,4088.1,4088.0,0.7617]
[1761622980293,0.7556,4088.1,4088.0,0.4371]
[1761622980998,0.4352,4087.8,4087.7,3.23443054]
[1761622981185,0.7556,4087.8,4087.7,3.45703054]
[1761622981389,0.7556,4087.8,4087.7,3.89738054]
[1761622981695,0.7556,4087.8,4087.7,4.00946094]
[1761622982492,0.7556,4087.9,4087.8,0.2145]
[1761622982893,0.3204,4087.8,4087.7,2.80741094]
[1761622983098,0.7556,4087.8,4087.7,3.02191094]
[1761622984997,0.7556,4087.8,4087.7,4.00786094]
[1761622985203,0.3315,4088.0,4087.9,0.7554]
[1761622986701,0.3315,4088.0,4087.9,1.19572]
[1761622987001,0.3315,4088.0,4087.9,0.7554]
[1761622987203,0.545,4088.0,4087.9,0.7554]
[1761622987601,0.6737,4088.0,4087.9,0.7554]
[1761622988001,0.8923,4088.0,4087.9,0.4324]
[1761622988701,0.8923,4088.0,4087.9,0.2199]
[1761622989197,0.8923,4088.0,4087.9,0.4296]
[1761622989600,0.8923,4088.0,4087.9,0.7514]
[1761622990298,0.8923,4088.0,4087.9,2.50543417]
[1761622991092,0.8923,4088.0,4087.9,2.18363417]
[1761622992403,0.8923,4088.0,4087.9,0.4296]
[1761622992707,0.8923,4088.0,4087.9,0.38646323]
[1761622993104,0.5728,4088.4,4088.3,0.435]
[1761622993406,0.7914,4088.4,4088.3,1.48837677]
[1761622993701,0.7914,4088.4,4088.3,1.27867677]
[1761622995106,0.7914,4088.4,4088.3,1.48837677]
[1761622995308,0.5728,4088.4,4088.3,2.21035677]
[1761622995504,0.5728,4088.4,4088.3,3.97079975]
[1761622996601,0.5728,4088.4,4088.3,3.53051975]
[1761622997403,0.5728,4088.4,4088.3,1.77007677]
[1761622999510,0.5728,4088.4,4088.3,2.21035677]
[1761622999699,0.7914,4088.4,4088.3,1.48837677]
[1761622999909,0.7914,4088.4,4088.3,1.27867677]
[1761623002313,0.7914,4088.4,4088.3,2.21035677]
[1761623002606,0.5728,4088.4,4088.3,2.21035677]
[1761623004809,0.3411,4088.4,4088.3,2.21035677]
[1761623005312,0.5728,4088.4,4088.3,1.77007677]
[1761623005706,0.5728,4088.4,4088.3,2.21035677]
[1761623006513,0.34301267,4088.6,4088.5,0.7167]
[1761623007015,0.00191267,4088.6,4088.5,1.19316]
[1761623007204,0.3411,4089.2,4089.1,0.7167]
[1761623007403,0.3411,4089.2,4089.1,2.21027677]
[1761623007608,0.3411,4089.5,4089.4,0.2817]
[1761623007806,0.3411,4089.5,4089.4,1.77007677]
[1761623008114,0.34309268,4089.5,4089.4,1.77007677]
[1761623008319,0.57479268,4089.5,4089.4,1.77007677]
[1761623008511,0.70349268,4089.5,4089.4,1.77007677]
[1761623011420,0.34309268,4089.5,4089.4,3.26361354]
[1761623011609,0.00199268,4089.5,4089.4,4.58111875]
[1761623012417,0.00199268,4089.5,4089.4,3.26361354]
[1761623013119,0.34309268,4089.5,4089.4,3.26361354]
[1761623013311,0.00199268,4089.5,4089.4,4.57896903]
[1761623013812,0.00199268,4089.5,4089.4,4.13880903]
[1761623014017,0.34309268,4089.5,4089.4,3.52559226]
[1761623014218,0.34309268,4089.5,4089.4,4.57896903]
[1761623016023,0.00199268,4089.5,4089.4,4.57896903]
[1761623016220,0.3368,4090.1,4089.8,0.44012]
[1761623016519,0.5565,4090.1,4090.0,1.76547677]
[1761623016817,0.3368,4090.1,4090.0,2.20557677]
[1761623017320,0.33879966,4090.1,4090.0,2.20781586]
[1761623018920,0.00199966,4090.1,4090.0,2.25681586]
[1761623019319,0.3368,4090.8,4090.4,0.282]
[1761623019620,0.5565,4090.8,4090.7,1.48347677]
[1761623020318,0.55859325,4090.8,4090.7,1.48347677]
[1761623020821,0.78909325,4090.8,4090.7,1.48347677]
[1761623024218,0.135,4090.5,4090.1,1.533554]
[1761623024421,0.135,4090.5,4090.1,0.219]
[1761623024422,0.787,4090.2,4090.1,0.219]
[1761623024614,0.787,4090.2,4090.1,1.27237677]
[1761623025115,0.787,4090.2,4090.1,1.92356677]
[1761623025310,0.5565,4090.2,4090.1,2.20556677]
[1761623026420,0.5565,4090.2,4090.1,1.76547677]
[1761623026719,0.787,4090.2,4090.1,1.48347677]
[1761623028922,0.787,4090.2,4090.1,1.76547677]
[1761623029725,0.787,4090.2,4090.1,3.52012077]
[1761623032422,0.787,4090.2,4090.1,2.20556677]
[1761623034729,0.787,4090.2,4090.1,1.76547677]
[1761623035728,0.787,4090.2,4090.1,1.48347677]
[1761623037831,0.787,4090.2,4090.1,1.92356677]
[1761623038327,0.787,4090.2,4090.1,1.48347677]
[1761623038830,0.787,4090.2,4090.1,1.92356677]
[1761623039337,0.787,4090.2,4090.1,3.24112264]
[1761623040734,0.787,4090.2,4090.1,3.96321264]
[1761623041434,0.787,4090.2,4090.1,1.76547677]
[1761623041634,0.787,4090.2,4090.1,1.48347677]
[1761623041829,0.787,4090.2,4090.1,1.69266369]
[1761623042038,0.787,4090.2,4090.1,1.97466369]
[1761623042337,0.3368,4090.2,4090.1,2.41475369]
[1761623042635,0.5565,4090.2,4090.1,1.97466369]
[1761623042837,0.787,4090.2,4090.1,1.69266369]
[1761623043032,0.787,4090.2,4090.1,3.4497506]
[1761623043228,0.787,4090.2,4090.1,1.69266369]
[1761623043428,0.787,4090.2,4090.1,1.97466369]
[1761623045039,0.787,4090.2,4090.1,2.41475369]
[1761623045242,0.787,4090.2,4090.1,1.97466369]
[1761623050144,0.787,4090.2,4090.1,2.41475369]
[1761623051543,0.787,4090.2,4090.1,1.97466369]
[1761623052844,0.787,4090.2,4090.1,1.66678164]
[1761623054847,0.3368,4090.2,4090.1,2.36237164]
[1761623055048,0.00209325,4090.8,4090.1,2.36237164]
[1761623055049,0.3255,4090.7,4090.3,0.87497]
[1761623055259,0.3255,4090.7,4090.6,3.45792904]
[1761623055442,0.3255,4090.7,4090.6,1.69746369]
[1761623055750,0.5446,4090.7,4090.6,1.95296369]
[1761623055937,0.5446,4090.7,4090.6,3.71342904]
[1761623060946,0.5446,4090.7,4090.6,1.95296369]
[1761623061953,0.3255,4090.7,4090.6,1.95296369]
[1761623064157,0.3255,4090.7,4090.6,2.39299369]
[1761623064354,0.3255,4090.7,4090.6,1.95296369]
[1761623065358,0.5446,4090.7,4090.6,1.95296369]
[1761623066158,0.7729,4090.7,4090.6,1.95296369]
[1761623066344,0.7729,4090.7,4090.6,1.69746369]
[1761623067850,0.7729,4090.7,4090.6,1.95296369]
[1761623068052,0.5446,4090.7,4090.6,2.39299369]
[1761623068355,0.3255,4090.7,4090.6,2.39299369]
[1761623068556,0.3255,4090.7,4090.6,3.71342904]
[1761623068756,0.3255,4090.7,4090.6,1.95296369]
[1761623069260,0.3255,4090.7,4090.6,2.39299369]
[1761623069660,0.3255,4090.7,4090.6,1.95296369]
[1761623070859,0.5446,4090.7,4090.6,1.95296369]
[1761623073759,0.7729,4090.7,4090.6,1.69746369]
[1761623076963,0.7729,4090.7,4090.6,2.13750369]
[1761623077463,0.7729,4090.7,4090.6,1.95306369]
[1761623077857,0.7729,4090.7,4090.6,1.69746369]
[1761623078161,0.7729,4090.7,4090.6,1.95306369]
[1761623079461,0.7729,4090.7,4090.6,1.69746369]
[1761623079667,1.21293,4090.7,4090.6,0.4349]
[1761623079856,0.7729,4090.7,4090.6,0.4349]
[1761623080261,0.9172,4090.5,4090.4,1.76046535]
[1761623082563,0.332,4090.4,4090.3,3.24112904]
[1761623082759,0.7805,4090.4,4090.3,3.24112904]
[1761623082959,0.7805,4090.4,4090.3,1.48066369]
[1761623083863,0.4485,4090.4,4090.0,0.22033909]
[1761623084165,0.7805,4090.1,4090.0,1.98028043]
[1761623084368,0.7805,4090.1,4090.0,0.00223909]
[1761623084767,1.22059,4090.1,4090.0,0.00223909]
[1761623085268,1.22059,4090.1,4090.0,1.32101336]
[1761623085475,0.7805,4090.1,4090.0,1.32101336]
[1761623085671,0.7805,4090.1,4090.0,1.53911336]
[1761623085973,0.7805,4090.1,4090.0,1.53907265]
[1761623087278,0.7805,4090.1,4090.0,0.22033909]
[1761623091787,1.22059,4090.1,4090.0,0.00223909]
[1761623093185,0.7805,4090.1,4090.0,0.00223909]
[1761623094287,0.7805,4090.1,4090.0,0.22033909]
[1761623096692,0.7805,4090.1,4090.0,0.87253909]
[1761623096887,0.5562,4090.1,4090.0,1.12813909]
[1761623097382,0.5562,4090.1,4090.0,2.44687265]
[1761623098285,0.3609,4090.5,4090.4,0.6858]
[1761623098585,0.3609,4090.5,4090.4,1.94836369]
[1761623098786,0.6929,4090.5,4090.4,1.94836369]
[1761623100286,0.6929,4090.5,4090.4,2.38842369]
[1761623100781,0.332,4090.5,4090.4,3.70517351]
[1761623100993,0.332,4090.5,4090.4,2.38842369]
[1761623102593,0.9172,4090.5,4090.4,1.69276369]
[1761623103490,0.9172,4090.5,4090.4,1.26256369]
[1761623103684,0.5852,4090.5,4090.4,1.05208879]
[1761623103889,0.9172,4090.5,4090.4,1.27018879]
[1761623107198,0.9172,4090.5,4090.4,2.18464879]
[1761623107697,0.332,4090.5,4090.4,2.18464879]
[1761623108792,0.563,4090.5,4090.4,1.74458879]
[1761623108992,0.332,4090.5,4090.4,2.18463879]
[1761623109492,0.23309325,4090.8,4090.5,0.44004]
[1761623109790,0.3472,4090.7,4090.6,1.14783]
[1761623110486,0.3472,4090.7,4090.6,0.7078]
[1761623110796,0.3472,4090.7,4090.6,1.75988879]
[1761623112194,0.5782,4090.7,4090.6,1.75988879]
[1761623112897,0.5782,4090.7,4090.6,2.18438958]
[1761623113311,0.34929325,4090.8,4090.7,0.89272]
[1761623113494,0.00209325,4090.8,4090.7,0.89272]
[1761623113995,0.00209325,4090.8,4090.7,2.65266134]
[1761623114599,0.3472,4091.2,4091.1,0.89268]
[1761623114897,0.3472,4091.2,4091.1,2.18436879]
[1761623115496,0.34952754,4091.2,4091.1,2.18436879]
[1761623115897,0.34952754,4091.2,4091.1,1.74438879]
[1761623116098,0.34952754,4091.2,4091.1,2.18436879]
[1761623116705,0.5782,4091.8,4091.7,0.4527]
[1761623116998,0.5782,4091.8,4091.7,1.74438879]
[1761623117702,0.58117918,4091.8,4091.7,1.74438879]
[1761623118001,0.79887918,4091.8,4091.7,1.28278879]
[1761623121698,0.79887918,4091.8,4091.7,1.50478879]
[1761623121903,0.00297918,4091.8,4091.7,3.23639758]
[1761623122395,0.00297918,4091.8,4091.7,2.18430879]
[1761623122396,0.35017918,4091.8,4091.7,2.18430879]
[1761623122593,0.00297918,4091.8,4091.7,3.23639758]
[1761623123008,0.00297918,4091.8,4091.7,6.38000164]
[1761623123704,0.3472,4092.4,4092.3,1.13215]
[1761623124009,0.3472,4092.4,4092.3,2.18423879]
[1761623124400,40.931,4092.5,4092.3,2.18423879]
[1761623124401,0.4782,4092.5,4092.4,0.67944]
[1761623124598,0.4810725,4092.5,4092.4,1.13214]
[1761623125208,0.4810725,4092.5,4092.4,0.6923]
[1761623125396,0.9297725,4092.5,4092.4,0.4527]
[1761623126605,0.4782,4092.0,4091.9,1.75353113]
[1761623126792,0.5797,4092.0,4091.8,1.31363113]
[1761623126992,0.7959,4091.9,4091.8,1.54433113]
[1761623128106,0.7959,4091.9,4091.8,2.59641992]
[1761623129606,0.7959,4091.9,4091.8,2.81841992]
[1761623130214,0.7959,4091.9,4091.8,3.49791992]
[1761623130506,0.5782,4091.9,4091.8,3.49791992]
[1761623133309,0.5782,4091.9,4091.8,2.18428879]
[1761623134412,0.3472,4091.9,4091.8,2.18428879]
[1761623134610,0.5496,4092.4,4092.3,0.2154]
[1761623134908,0.773,4092.4,4092.3,1.49628879]
[1761623139405,0.773,4092.4,4092.3,1.93613879]
[1761623140008,0.773,4092.4,4092.3,1.49628879]
[1761623140617,1.21284,4092.4,4092.3,1.05208879]
[1761623141506,1.21288,4092.1,4092.0,2.36550792]
[1761623142618,0.773,4092.1,4092.0,2.36550792]
[1761623143322,0.773,4092.1,4092.0,1.05208879]
[1761623145619,0.773,4092.1,4092.0,1.28088879]
[1761623145820,0.773,4092.1,4092.0,1.93616879]
[1761623147619,0.5496,4092.1,4092.0,3.22845758]
[1761623147816,0.5496,4092.1,4092.0,2.17636879]
[1761623148122,0.5496,4092.1,4092.0,3.22845758]
[1761623148520,0.5496,4092.1,4092.0,2.17636879]
[1761623149123,0.3261,4092.1,4092.0,1.73648879]
[1761623150624,0.5496,4092.1,4092.0,1.73648879]
[1761623152117,0.5496,4092.1,4092.0,3.49643013]
[1761623155831,0.3261,4092.1,4092.0,3.49643013]
[1761623156332,0.3261,4092.4,4092.3,0.6844]
[1761623156542,0.3261,4092.4,4092.3,1.73648879]
[1761623156743,0.5496,4092.4,4092.3,1.73648879]
[1761623157944,0.773,4092.4,4092.3,1.73648879]
[1761623158743,0.773,4092.4,4092.3,1.49628879]
[1761623159442,0.773,4092.4,4092.3,1.73648879]
[1761623159742,0.773,4092.4,4092.3,2.17634879]
[1761623160042,0.773,4092.4,4092.3,1.93614879]
[1761623160644,0.5496,4092.4,4092.3,2.17634879]
[1761623162542,0.5496,4092.4,4092.3,1.73648879]
[1761623162744,0.773,4092.4,4092.3,1.49628879]
[1761623163746,0.773,4092.4,4092.3,1.70551999]
[1761623165544,0.773,4092.4,4092.3,2.14536999]
[1761623166534,0.773,4092.4,4092.3,2.38576999]
[1761623167142,0.5496,4092.4,4092.3,2.38576999]
[1761623168658,0.5496,4092.4,4092.3,1.94591999]
[1761623169151,0.5496,4092.4,4092.3,2.38576999]
[1761623169652,0.5496,4092.4,4092.3,1.94591999]
[1761623170448,0.3459725,4092.5,4092.4,1.13204]
[1761623170849,0.3459725,4092.5,4092.4,0.6922]
[1761623171046,0.5711725,4092.5,4092.4,0.6922]
[1761623171250,0.7008725,4092.5,4092.4,0.6922]
[1761623172744,0.7008725,4092.5,4092.4,0.68288251]
[1761623173051,0.3459725,4092.5,4092.4,1.12272251]
[1761623173942,0.0028725,4092.5,4092.4,1.12272251]
[1761623174447,0.3459725,4092.5,4092.4,1.12272251]
[1761623176547,0.0028725,4092.5,4092.4,1.12272251]
[1761623177253,0.3459725,4092.5,4092.4,1.12272251]
[1761623178154,0.3459725,4092.5,4092.4,0.68288251]
[1761623178654,0.3459725,4092.5,4092.4,1.12272251]
[1761623181359,0.3459725,4092.5,4092.4,2.87918009]
[1761623182358,0.3459725,4092.5,4092.4,2.87959639]
[1761623183161,0.3459725,4092.5,4092.4,1.12272251]
[1761623187865,0.0028725,4092.5,4092.4,1.12272251]
[1761623188466,0.3459725,4092.5,4092.4,1.12272251]
[1761623189269,0.3459725,4092.5,4092.4,2.87947785]
[1761623191667,0.3459725,4092.5,4092.4,1.12272251]
[1761623191868,0.3431,4093.3,4092.6,1.09956]
[1761623192174,0.3562,4093.5,4092.1,4.99767]
[1761623192175,0.3431,4093.4,4093.3,1.12264]
[1761623192666,0.5683,4093.8,4093.7,1.1226]
[1761623192868,0.34516254,4093.8,4093.7,2.38682786]